bitfinex-derivatives/quotes_SOLF0:USTF0_20250301
["timestamp","ask_amount","ask_price","bid_price","bid_amount"]
[1740863712321,169.42551658,140.59,140.56,1.9205]
[1740863712527,7.1165,140.57,140.56,1.9205]
[1740863712734,169.42551658,140.59,140.54,0.05423911]
[1740863712921,7.1176,140.55,140.54,0.05423911]
[1740863718940,8.2698579,140.55,140.54,3.911e-05]
[1740863721231,7.1176,140.55,140.54,3.911e-05]
[1740863721432,8.27020236,140.55,140.54,3.911e-05]
[1740863724632,8.27011929,140.55,140.54,3.911e-05]
[1740863726240,7.1176,140.55,140.54,3.911e-05]
[1740863726440,8.27011747,140.55,140.54,3.911e-05]
[1740863727936,7.1176,140.55,140.54,3.911e-05]
[1740863728136,8.27009421,140.55,140.54,3.911e-05]
[1740863731144,11.83009421,140.55,140.54,3.911e-05]
[1740863731347,10.6776,140.55,140.54,3.911e-05]
[1740863731541,33.20047554,140.55,140.54,3.911e-05]
[1740863731741,34.62345668,140.55,140.54,3.911e-05]
[1740863732845,56.00345668,140.55,140.54,3.911e-05]
[1740863733046,56.00345651,140.55,140.54,3.911e-05]
[1740863733632,63.44067824,140.55,140.54,3.911e-05]
[1740863734838,42.06067824,140.55,140.54,3.911e-05]
[1740863735448,42.06065304,140.55,140.54,3.911e-05]
[1740863735838,47.40368539,140.55,140.54,3.911e-05]
[1740863736445,49.23888539,140.55,140.54,3.911e-05]
[1740863738146,49.23892019,140.55,140.54,3.911e-05]
[1740863739248,43.89588784,140.55,140.54,3.911e-05]
[1740863739444,36.45866611,140.55,140.54,3.911e-05]
[1740863742037,11.52866611,140.55,140.54,3.911e-05]
[1740863742252,22.68866611,140.55,140.54,3.911e-05]
[1740863748943,250.66866611,140.55,140.54,3.911e-05]
[1740863749856,250.66849493,140.55,140.54,3.911e-05]
[1740863752459,266.16621566,140.55,140.54,3.911e-05]
[1740863753250,271.51084534,140.55,140.54,3.911e-05]
[1740863753450,266.16621566,140.55,140.54,3.911e-05]
[1740863753754,266.16621526,140.55,140.54,3.911e-05]
[1740863754556,264.33101526,140.55,140.54,3.911e-05]
[1740863754750,253.17101526,140.55,140.54,3.911e-05]
[1740863754950,365.63435618,140.55,140.54,3.911e-05]
[1740863755153,366.78678416,140.55,140.54,3.911e-05]
[1740863756954,365.63435618,140.55,140.54,3.911e-05]
[1740863757149,366.78684085,140.55,140.54,3.911e-05]
[1740863757362,370.97820206,140.55,140.54,3.911e-05]
[1740863757549,372.13091245,140.55,140.54,3.911e-05]
[1740863757950,372.13089604,140.55,140.54,3.911e-05]
[1740863758146,254.057121,140.55,140.54,3.911e-05]
[1740863759065,296.807121,140.55,140.54,3.911e-05]
[1740863759653,275.427121,140.55,140.54,3.911e-05]
[1740863760648,254.057121,140.55,140.54,3.911e-05]
[1740863761060,248.71327512,140.55,140.54,3.911e-05]
[1740863761859,367.23190408,140.55,140.54,3.911e-05]
[1740863764165,367.23158856,140.55,140.54,3.911e-05]
[1740863764367,248.7129596,140.55,140.54,3.911e-05]
[1740863768567,247.56058114,140.55,140.54,3.911e-05]
[1740863768778,248.71305173,140.55,140.54,3.911e-05]
[1740863768975,236.25007059,140.55,140.54,3.911e-05]
[1740863769368,235.0976,140.55,140.54,3.911e-05]
[1740863770374,227.98,140.55,140.54,3.911e-05]
[1740863771983,235.0976,140.55,140.54,3.911e-05]
[1740863778488,227.98,140.55,140.54,3.911e-05]
[1740863778695,7.16602024,140.56,140.54,3.56003911]
[1740863778894,7.16602024,140.56,140.54,3.911e-05]
[1740863780091,7.16602024,140.56,140.54,7.11803911]
[1740863780393,7.16602024,140.56,140.54,3.911e-05]
[1740863780788,0.04882024,140.56,140.54,3.911e-05]
[1740863780981,0.04882024,140.56,140.54,3.56003911]
[1740863781385,0.04882024,140.56,140.55,7.1176]
[1740863781796,0.04882024,140.56,140.55,10.6776]
[1740863785593,7.1158,140.59,140.57,7.1162]
[1740863785789,7.1158,140.59,140.58,3.7445]
[1740863789205,7.116,140.58,140.57,0.0542106]
[1740863791401,7.116,140.58,140.57,1.06e-05]
[1740863791603,8.26811279,140.58,140.57,1.06e-05]
[1740863792503,7.116,140.58,140.57,1.06e-05]
[1740863792803,8.26825,140.58,140.57,1.06e-05]
[1740863793205,10.13055,140.58,140.57,1.06e-05]
[1740863796595,15.47379785,140.58,140.57,1.06e-05]
[1740863797698,10.13055,140.58,140.57,1.06e-05]
[1740863798098,8.26825,140.58,140.57,1.06e-05]
[1740863799015,19.04825,140.58,140.57,1.06e-05]
[1740863799206,19.04816428,140.58,140.57,1.06e-05]
[1740863804310,17.896,140.58,140.57,1.06e-05]
[1740863804496,19.04816954,140.58,140.57,1.06e-05]
[1740863807715,17.896,140.58,140.57,1.06e-05]
[1740863807913,19.04823484,140.58,140.57,1.06e-05]
[1740863811215,17.896,140.58,140.57,1.06e-05]
[1740863811412,19.04831109,140.58,140.57,1.06e-05]
[1740863816019,17.896,140.58,140.57,1.06e-05]
[1740863816220,19.04858594,140.58,140.57,1.06e-05]
[1740863816413,24.39101742,140.58,140.57,1.06e-05]
[1740863817715,23.23843148,140.58,140.57,1.06e-05]
[1740863818020,24.39100396,140.58,140.57,1.06e-05]
[1740863819619,103.61129123,140.58,140.57,1.06e-05]
[1740863821617,98.26885975,140.58,140.57,1.06e-05]
[1740863822327,98.14885975,140.58,140.57,1.06e-05]
[1740863823727,18.92857248,140.58,140.57,1.06e-05]
[1740863824525,17.776,140.58,140.57,1.06e-05]
[1740863824725,18.92815089,140.58,140.57,1.06e-05]
[1740863826925,18.92840497,140.58,140.57,1.06e-05]
[1740863827321,40.29840497,140.58,140.57,1.06e-05]
[1740863827526,45.28108244,140.58,140.57,1.06e-05]
[1740863828020,7.1224,140.46,140.43,3.7878]
[1740863828626,10.66,140.51,140.43,3.7878]
[1740863828829,1.15279382,140.5,140.43,3.7878]
[1740863829025,1.15279382,140.5,140.46,0.05302089]
[1740863829326,0.04671044,140.48,140.46,0.05302089]
[1740863829721,7.1216,140.47,140.46,0.05302089]
[1740863840734,7.16801044,140.48,140.46,0.05302089]
[1740863841723,7.1216,140.47,140.46,0.05302089]
[1740863849244,7.1255,140.4,140.38,1.8964]
[1740863849735,10.72,140.44,140.31,9.87157047]
[1740863849940,10.72,140.44,140.32,3.8929]
[1740863850147,4.86774487,140.43,140.32,3.8929]
[1740863850439,7.1275,140.36,140.32,3.8929]
[1740863850836,0.05413452,140.35,140.33,0.0547119]
[1740863853735,7.18213452,140.35,140.33,0.0547119]
[1740863853931,0.05413452,140.35,140.33,0.0547119]
[1740863854432,7.1282,140.34,140.33,0.0547119]
[1740863855030,0.05413452,140.35,140.3,78.9829903]
[1740863855236,194.0,140.34,140.29,98.69290673]
[1740863855443,11.0,140.33,140.29,84.91130673]
[1740863855642,11.0,140.33,140.2,2.0114]
[1740863855643,7.1316,140.28,140.2,9.1467]
[1740863855838,18.1716,140.28,140.2,9.1467]
[1740863856133,7.1318,140.27,140.2,9.1467]
[1740863856338,0.05446402,140.25,140.23,0.04738012]
[1740863856846,0.05446402,140.25,140.23,3.60738012]
[1740863857034,11.04,140.28,140.23,10.74078012]
[1740863857235,11.04,140.28,140.23,7.18078012]
[1740863858046,11.04,140.28,140.24,7.1333]
[1740863858245,0.05190215,140.27,140.23,0.04738012]
[1740863859034,0.05190215,140.27,140.25,7.1323]
[1740863859241,7.1303,140.3,140.23,0.04738012]
[1740863859539,433.14,140.32,140.25,7.1327]
[1740863859540,7.1308,140.29,140.25,7.1327]
[1740863859742,7.1308,140.29,140.21,11.08]
[1740863860046,7.1298,140.31,140.27,7.1315]
[1740863860245,7.1298,140.31,140.21,11.08]
[1740863860447,0.04513019,140.3,140.28,0.04924334]
[1740863860648,0.04513019,140.3,140.21,11.08]
[1740863860842,440.2694,140.32,140.25,0.04957657]
[1740863861141,0.04906695,140.27,140.26,7.1323]
[1740863861342,7.1299,140.31,140.25,0.04957657]
[1740863861543,239.14,140.32,140.25,0.04957657]
[1740863861743,239.14,140.32,140.27,7.1317]
[1740863861948,7.1299,140.31,140.27,7.1317]
[1740863862147,239.14,140.32,140.21,11.08]
[1740863862343,7.1307,140.3,140.26,7.1321]
[1740863863546,239.14,140.32,140.25,0.05107828]
[1740863864048,239.14,140.32,140.25,7.18377828]
[1740863864450,7.1316,140.28,140.25,7.18377828]
[1740863864648,7.1316,140.28,140.26,7.1323]
[1740863864848,239.14,140.32,140.26,7.1323]
[1740863865245,239.14,140.32,140.27,7.1315]
[1740863865451,239.14,140.32,140.22,1.9552]
[1740863865650,228.06,140.32,140.28,0.05432058]
[1740863866336,194.0,140.36,140.28,0.05432058]
[1740863866851,201.1276,140.36,140.28,0.05432058]
[1740863867038,11.08,140.37,140.28,2.03842058]
[1740863867243,11.08,140.37,140.28,1.9841]
[1740863867450,11.08,140.37,140.31,0.05037131]
[1740863868453,7.1267,140.37,140.33,7.1284]
[1740863869041,7.1272,140.36,140.33,7.1284]
[1740863869454,7.1272,140.36,140.33,7.18201878]
[1740863870158,7.1282,140.34,140.33,0.05361878]
[1740863870951,228.22,140.39,140.33,0.05361878]
[1740863871740,228.22,140.39,140.37,7.1263]
[1740863872159,228.22,140.39,140.37,0.052463]
[1740863872453,228.22,140.39,140.38,7.1262]
[1740863873255,36.53219642,140.43,140.39,7.1254]
[1740863873554,29.40849642,140.43,140.37,0.052463]
[1740863874451,29.40849642,140.43,140.4,7.1248]
[1740863874961,36.53209642,140.43,140.4,0.04970616]
[1740863875349,29.40849642,140.43,140.4,0.04970616]
[1740863875546,228.2,140.46,140.4,0.04970616]
[1740863876554,7.1247,140.41,140.4,0.04970616]
[1740863876957,7.1274,140.36,140.34,13.1762]
[1740863877159,7.1274,140.36,140.34,2.0162]
[1740863877458,7.1274,140.36,140.31,18.2897]
[1740863877849,7.1286,140.34,140.3,11.14]
[1740863878056,7.1286,140.34,140.3,18.27]
[1740863878254,0.04833725,140.33,140.31,0.04731766]
[1740863878558,0.04833725,140.33,140.31,7.17671766]
[1740863880260,0.04833725,140.33,140.32,7.1292]
[1740863880651,0.04833725,140.33,140.32,10.6892]
[1740863881450,1.8662,140.41,140.35,7.1275]
[1740863881668,1.8662,140.41,140.33,1.8515]
[1740863882052,7.1265,140.38,140.33,1.8515]
[1740863882560,1.8662,140.41,140.36,7.1267]
[1740863882759,7.1254,140.4,140.36,7.1267]
[1740863883061,29.40849642,140.43,140.37,0.04571502]
[1740863883360,29.40849642,140.43,140.37,1.97071502]
[1740863883759,7.1245,140.42,140.39,7.1254]
[1740863884354,29.40849642,140.43,140.37,1.97071502]
[1740863884957,29.40849642,140.43,140.42,7.1241]
[1740863885160,23.32909642,140.43,140.42,10.6841]
[1740863885359,23.32909642,140.47,140.42,3.56]
[1740863885558,23.32909642,140.47,140.41,11.20575837]
[1740863885764,23.32909642,140.47,140.46,7.1221]
[1740863887459,4.54619642,140.47,140.46,21.9421]
[1740863887664,27.68219142,140.48,140.47,7.1216]
[1740863888167,27.68219142,140.48,140.47,10.6816]
[1740863888363,197.93023751,140.5,140.47,3.56]
[1740863888570,9.1089,140.53,140.49,7.1202]
[1740863889077,9.1089,140.53,140.5,0.04703305]
[1740863889769,9.1089,140.53,140.5,7.16713305]
[1740863889968,9.1089,140.53,140.5,0.04703305]
[1740863892262,9.1089,140.53,140.5,7.16683305]
[1740863893266,7.1176,140.55,140.52,7.119]
[1740863893662,7.1176,140.55,140.52,7.17066631]
[1740863893866,10.952,140.57,140.52,0.05166631]
[1740863894267,3.835,140.57,140.52,0.05166631]
[1740863894467,10.9517,140.57,140.54,7.1177]
[1740863894677,10.9517,140.57,140.52,0.05166631]
[1740863894969,3.835,140.57,140.52,0.05166631]
[1740863895173,3.835,140.57,140.55,7.1175]
[1740863895477,228.1,140.6,140.52,0.05166631]
[1740863895771,7.1156,140.59,140.55,7.1171]
[1740863895966,5.9125,140.63,140.51,11.26]
[1740863896173,5.9125,140.63,140.56,0.04719051]
[1740863896769,7.1164,140.58,140.56,0.04719051]
[1740863898079,7.1146,140.61,140.56,0.04719051]
[1740863898280,5.9125,140.63,140.56,11.30719051]
[1740863898582,5.9125,140.63,140.58,7.1157]
[1740863898782,7.1146,140.61,140.58,7.1157]
[1740863899082,7.1146,140.61,140.59,0.04533701]
[1740863900676,7.1146,140.61,140.59,7.16083701]
[1740863901984,7.1142,140.62,140.59,7.16083701]
[1740863902178,5.9125,140.63,140.59,0.04533701]
[1740863902682,13.0261,140.63,140.59,0.04533701]
[1740863903272,13.0261,140.63,140.6,7.1148]
[1740863903470,7.1143,140.62,140.59,0.04533701]
[1740863903874,7.1143,140.62,140.59,7.16053701]
[1740863904378,7.1148,140.61,140.59,0.04533701]
[1740863904578,5.9125,140.63,140.59,0.04533701]
[1740863905087,7.1142,140.62,140.59,0.04533701]
[1740863905287,5.9125,140.63,140.59,0.04533701]
[1740863905481,13.0263,140.63,140.6,7.1148]
[1740863906079,7.1143,140.62,140.59,7.16063701]
[1740863906485,5.9125,140.63,140.59,0.04533701]
[1740863906685,7.1141,140.62,140.59,7.16083701]
[1740863907075,5.9125,140.63,140.59,7.16083701]
[1740863907280,7.1144,140.62,140.59,7.16083701]
[1740863907681,5.9125,140.63,140.59,7.16083701]
[1740863907881,7.1141,140.62,140.59,7.16083701]
[1740863908280,13.0263,140.63,140.61,7.1143]
[1740863908481,3.9072,140.63,140.61,7.1143]
[1740863909190,11.0208,140.63,140.61,7.1143]
[1740863909590,11.0208,140.63,140.6,7.1148]
[1740863910288,7.1141,140.62,140.59,0.04533701]
[1740863910492,3.9072,140.63,140.59,0.04533701]
[1740863910695,7.1148,140.61,140.59,0.04533701]
[1740863911190,7.1148,140.61,140.59,7.16083701]
[1740863911392,3.9072,140.63,140.59,0.04533701]
[1740863911606,3.9072,140.63,140.6,7.1149]
[1740863912095,7.1145,140.61,140.59,7.16083701]
[1740863912493,3.9072,140.63,140.59,0.04533701]
[1740863913596,7.115,140.6,140.59,0.04533701]
[1740863913988,7.1159,140.59,140.56,11.26]
[1740863914190,3.9072,140.63,140.56,11.26]
[1740863914689,7.1162,140.58,140.56,11.26]
[1740863914987,3.9072,140.63,140.56,11.26]
[1740863915195,0.05073486,140.58,140.56,11.30567424]
[1740863915395,3.9072,140.63,140.56,11.30567424]
[1740863915591,0.04947216,140.58,140.56,11.30567424]
[1740863915897,0.05126304,140.58,140.56,11.30567424]
[1740863916399,0.05126304,140.58,140.57,7.1165]
[1740863916591,6.304e-05,140.58,140.57,7.1165]
[1740863916787,6.304e-05,140.58,140.57,10.6765]
[1740863918997,6.304e-05,140.58,140.57,7.1165]
[1740863919692,6.304e-05,140.58,140.57,10.6765]
[1740863925595,6.304e-05,140.58,140.57,7.1165]
[1740863927202,6.304e-05,140.58,140.57,10.6765]
[1740863932405,6.304e-05,140.58,140.57,18.1565]
[1740863946920,6.304e-05,140.58,140.57,21.7165]
[1740863947614,29.44049569,140.68,140.57,32.42]
[1740863947817,29.44049569,140.68,140.67,7.1115]
[1740863948007,29.44049569,140.68,140.67,18.0515]
[1740863949320,1.8293,140.7,140.68,7.1106]
[1740863949523,1.8293,140.7,140.67,10.94]
[1740863949711,29.44049569,140.72,140.67,10.94]
[1740863949912,29.44049569,140.72,140.7,7.1096]
[1740863950311,29.44049569,140.72,140.7,7.16269166]
[1740863950720,29.44049569,140.72,140.7,0.05309166]
[1740863951726,29.44049569,140.72,140.7,7.16279166]
[1740863953024,3.9368,140.73,140.7,7.16279166]
[1740863953526,29.44049569,140.77,140.73,7.1083]
[1740863953820,29.44049569,140.77,140.74,0.051445]
[1740863953821,5.8828,140.76,140.74,0.051445]
[1740863954028,5.8828,140.76,140.74,7.159345]
[1740863954322,5.8828,140.76,140.74,0.051445]
[1740863956419,5.8828,140.76,140.75,7.1074]
[1740863956717,29.44049569,140.77,140.75,7.1074]
[1740863956914,29.44049569,140.77,140.76,7.1069]
[1740863957120,3.9384,140.79,140.74,0.051445]
[1740863957819,31.46309569,140.8,140.78,7.1058]
[1740863958022,35.40149569,140.8,140.78,7.1058]
[1740863958224,35.40149569,140.8,140.78,0.04906696]
[1740863959223,35.40149569,140.8,140.79,7.1054]
[1740863960321,5.961,140.8,140.79,7.1054]
[1740863962424,7.1034,140.83,140.79,7.1054]
[1740863962626,5.8284,140.82,140.79,7.1054]
[1740863962817,5.8284,140.82,140.78,0.04906696]
[1740863963022,5.8284,140.82,140.74,10.84]
[1740863963416,5.8284,140.82,140.67,1.8932]
[1740863963620,5.8284,140.82,140.68,10.86]
[1740863964129,0.04863291,140.76,140.74,0.04779658]
[1740863964317,1.8434,140.76,140.68,10.86]
[1740863964720,8.9506,140.76,140.68,10.86]
[1740863964921,1.8434,140.76,140.68,10.86]
[1740863965430,0.05385221,140.73,140.72,7.109]
[1740863966025,5.221e-05,140.73,140.72,7.109]
[1740863975641,5.221e-05,140.73,140.72,10.669]
[1740863978038,5.221e-05,140.73,140.72,7.109]
[1740863980138,5.221e-05,140.73,140.72,17.889]
[1740863981831,5.221e-05,140.73,140.72,21.449]
[1740863982036,5.221e-05,140.73,140.72,23.4115]
[1740863983135,5.221e-05,140.73,140.72,27.2717]
[1740863984346,5.221e-05,140.73,140.72,48.6517]
[1740863984548,5.8146,140.86,140.84,7.1028]
[1740863985048,5.8146,140.86,140.81,10.76]
[1740863985453,5.8146,140.86,140.84,7.1027]
[1740863985637,0.04960076,140.85,140.84,7.1027]
[1740863993346,0.04960076,140.85,140.82,0.05430832]
[1740863994547,0.04960076,140.85,140.83,7.1034]
[1740863994853,0.04960076,140.85,140.82,0.05430832]
[1740863995152,0.04960076,140.85,140.82,7.15790832]
[1740863995753,7.15210076,140.85,140.82,7.15790832]
[1740863996950,7.103,140.84,140.82,0.05430832]
[1740863997555,0.04960076,140.85,140.8,7.1049]
[1740863997556,7.1034,140.83,140.8,7.1049]
[1740863997745,10.889,140.83,140.8,7.1049]
[1740863998360,10.889,140.83,140.8,7.1045]
[1740863998654,10.889,140.83,140.77,10.66]
[1740863998859,10.94113885,140.83,140.8,0.0508248]
[1740863999064,7.1042,140.82,140.8,0.0508248]
[1740864000147,3.83773885,140.83,140.8,0.0508248]
[1740864001045,3.83773885,140.83,140.76,122.18099641]
[1740864001253,3.83773885,140.83,140.65,227.36]
[1740864001254,7.1062,140.78,140.65,227.36]
[1740864001455,7.1062,140.78,140.74,7.1075]
[1740864001849,3.7856,140.83,140.72,10.64]
[1740864002052,7.1068,140.77,140.76,0.05101078]
[1740864002562,7.1062,140.78,140.76,0.05101078]
[1740864003452,0.0476545,140.79,140.76,0.05101078]
[1740864003957,0.0476545,140.79,140.78,7.1059]
[1740864004550,0.0476545,140.79,140.76,0.05101078]
[1740864006448,0.0476545,140.79,140.78,7.1059]
[1740864007164,0.0476545,140.79,140.76,0.05101078]
[1740864007669,7.1062,140.78,140.76,0.05101078]
[1740864007852,1.8421,140.78,140.76,0.05101078]
[1740864009564,1.8421,140.78,140.76,7.15791078]
[1740864009861,1.8421,140.78,140.73,10.68]
[1740864010170,3.9777,140.77,140.72,133.59861268]
[1740864010459,7.1071,140.76,140.73,7.1082]
[1740864010665,3.9777,140.77,140.72,133.59861268]
[1740864011258,0.0502289,140.76,140.74,7.1076]
[1740864012766,0.0502289,140.76,140.73,0.04682993]
[1740864012966,0.0502289,140.76,140.72,122.89861268]
[1740864013357,7.1082,140.74,140.72,122.89861268]
[1740864013565,0.0502289,140.76,140.71,7.1092]
[1740864013959,7.1083,140.74,140.71,7.1092]
[1740864014157,7.1083,140.74,140.72,0.04992659]
[1740864015666,7.1077,140.75,140.72,0.04992659]
[1740864016171,7.1077,140.75,140.72,7.15862659]
[1740864017375,0.0502289,140.76,140.72,0.04992659]
[1740864017674,0.0502289,140.76,140.75,7.1074]
[1740864024687,2.89e-05,140.76,140.75,7.1074]
[1740864030788,2.89e-05,140.76,140.75,10.6674]
[1740864037889,2.89e-05,140.76,140.75,7.1074]
[1740864038088,2.89e-05,140.76,140.75,10.6674]
[1740864039097,2.89e-05,140.76,140.75,17.6874]
[1740864045100,2.89e-05,140.76,140.75,21.2474]
[1740864046105,2.89e-05,140.76,140.75,17.6874]
[1740864046295,2.89e-05,140.76,140.75,21.2474]
[1740864047103,2.89e-05,140.76,140.75,17.6874]
[1740864047803,2.89e-05,140.76,140.75,21.2474]
[1740864050503,2.89e-05,140.76,140.75,42.5774]
[1740864060313,2.89e-05,140.76,140.75,17.6874]
[1740864060714,2.89e-05,140.76,140.75,7.1074]
[1740864060909,2.89e-05,140.76,140.75,17.5674]
[1740864061111,2.89e-05,140.76,140.75,7.1074]
[1740864061311,2.89e-05,140.76,140.75,17.5674]
[1740864062606,2.89e-05,140.76,140.72,237.23565191]
[1740864062811,2.89e-05,140.76,140.75,10.48]
[1740864063011,2.89e-05,140.76,140.74,10.48]
[1740864063211,2.89e-05,140.76,140.72,10.52992659]
[1740864064212,2.89e-05,140.76,140.71,4.5334]
[1740864064613,1.15001097,140.8,140.71,4.5334]
[1740864064812,7.1065,140.77,140.71,4.5334]
[1740864065122,194.0,140.79,140.7,17.5899]
[1740864065310,0.0535769,140.75,140.73,0.04629266]
[1740864068722,0.0535769,140.75,140.73,7.15469266]
[1740864069814,0.0535769,140.75,140.73,0.04629266]
[1740864070223,3.6135769,140.75,140.73,0.04629266]
[1740864070909,10.7211769,140.75,140.73,0.04629266]
[1740864071418,7.1611769,140.75,140.73,0.04629266]
[1740864071618,0.0535769,140.75,140.73,0.04629266]
[1740864073019,0.0535769,140.75,140.73,7.15449266]
[1740864073526,0.0535769,140.75,140.74,7.108]
[1740864074521,0.0535769,140.75,140.73,0.04629266]
[1740864075322,7.1613769,140.75,140.73,0.04629266]
[1740864075518,0.0535769,140.75,140.73,0.04629266]
[1740864075826,3.6135769,140.75,140.73,0.04629266]
[1740864076423,0.0535769,140.75,140.73,0.04629266]
[1740864077429,7.1613769,140.75,140.73,0.04629266]
[1740864078229,7.108,140.74,140.73,0.04629266]
[1740864078623,10.668,140.74,140.73,0.04629266]
[1740864078824,7.1093,140.72,140.61,14.2289]
[1740864079025,194.0,140.76,140.63,10.48]
[1740864079424,7.1088,140.73,140.68,7.1105]
[1740864079622,7.1088,140.73,140.63,10.48]
[1740864080025,0.04863016,140.69,140.68,7.111]
[1740864080223,7.1088,140.73,140.68,7.111]
[1740864080432,0.04668484,140.7,140.67,0.05082075]
[1740864081120,3.60668484,140.7,140.67,0.05082075]
[1740864081515,8.484e-05,140.7,140.68,10.62]
[1740864081735,8.484e-05,140.7,140.69,7.1105]
[1740864087430,8.484e-05,140.7,140.69,9.129]
[1740864087636,8.484e-05,140.7,140.69,12.689]
[1740864088320,8.484e-05,140.7,140.69,9.129]
[1740864091136,8.484e-05,140.7,140.69,17.7305]
[1740864094634,8.484e-05,140.7,140.69,7.1105]
[1740864094935,8.484e-05,140.7,140.69,17.7305]
[1740864095536,8.484e-05,140.7,140.69,10.62]
[1740864095729,8.484e-05,140.7,140.67,17.78222075]
[1740864095927,8.484e-05,140.7,140.67,10.67082075]
[1740864096324,8.484e-05,140.7,140.67,0.05082075]
[1740864096535,7.11018484,140.7,140.67,0.05082075]
[1740864097038,7.1105,140.69,140.67,0.05082075]
[1740864097635,8.484e-05,140.7,140.67,0.05082075]
[1740864097839,194.0,140.69,140.61,10.64]
[1740864098036,194.0,140.68,140.6,10.64]
[1740864098241,7.1116,140.67,140.62,7.1139]
[1740864099142,0.04919073,140.66,140.63,0.0529303]
[1740864100636,7.16159073,140.66,140.63,0.0529303]
[1740864100941,10.72159073,140.66,140.63,0.0529303]
[1740864101132,194.0,140.65,140.63,0.0529303]
[1740864101543,197.56,140.65,140.63,0.0529303]
[1740864103139,194.0,140.65,140.63,0.0529303]
[1740864103444,194.0,140.65,140.63,7.1663303]
[1740864103633,194.0,140.65,140.63,0.0529303]
[1740864105542,201.1127,140.65,140.63,0.0529303]
[1740864105838,194.0,140.65,140.63,0.0529303]
[1740864106543,0.04919073,140.66,140.65,7.1125]
[1740864112248,0.04919073,140.66,140.63,3.9880303]
[1740864113551,194.0,140.71,140.63,3.9880303]
[1740864113853,194.0,140.71,140.64,2.0003]
[1740864114150,194.0,140.71,140.67,7.111]
[1740864114445,194.0,140.71,140.67,17.751]
[1740864114644,194.0,140.71,140.68,0.04669688]
[1740864114842,0.04700724,140.7,140.68,0.04669688]
[1740864116049,0.04700724,140.7,140.69,7.1105]
[1740864116551,0.04700724,140.7,140.68,7.15729688]
[1740864117250,0.04700724,140.7,140.68,0.04669688]
[1740864120558,7.1105,140.69,140.68,0.04669688]
[1740864120745,0.04700724,140.7,140.68,0.04669688]
[1740864121145,7.1105,140.69,140.68,0.04669688]
[1740864121345,0.04700724,140.7,140.68,0.04669688]
[1740864121852,0.04700724,140.7,140.68,7.15739688]
[1740864122042,0.04700724,140.7,140.68,0.04669688]
[1740864122243,0.04700724,140.7,140.69,10.64]
[1740864129249,194.0,140.76,140.69,10.64]
[1740864129450,7.1065,140.77,140.72,7.1087]
[1740864129654,107.25208893,140.78,140.69,10.64]
[1740864129851,29.44049569,140.77,140.7,3.8943]
[1740864130471,0.05464561,140.75,140.74,7.1079]
[1740864130765,0.05464561,140.75,140.72,0.0467273]
[1740864131063,0.05464561,140.75,140.73,7.1082]
[1740864132263,0.05464561,140.75,140.72,0.0467273]
[1740864133464,0.05464561,140.75,140.65,14.4943]
[1740864133766,194.0,140.74,140.65,14.4943]
[1740864134064,7.1097,140.71,140.65,14.4943]
[1740864134261,194.0,140.74,140.65,12.5697]
[1740864134663,194.0,140.74,140.68,0.04631909]
[1740864134664,0.04804977,140.71,140.68,0.04631909]
[1740864134965,7.15774977,140.71,140.68,0.04631909]
[1740864135159,0.04804977,140.71,140.68,0.04631909]
[1740864135556,7.1105,140.69,140.68,0.04631909]
[1740864136563,194.0,140.7,140.68,0.04631909]
[1740864137555,194.0,140.7,140.69,7.1105]
[1740864139766,194.0,140.7,140.68,0.04631909]
[1740864142367,201.1102,140.7,140.68,0.04631909]
[1740864144068,194.0,140.7,140.68,0.04631909]
[1740864146769,194.0,140.7,140.68,7.15721909]
[1740864147070,194.0,140.7,140.68,0.04631909]
[1740864147270,194.0,140.7,140.69,7.1105]
[1740864148075,0.04804977,140.71,140.69,7.1105]
[1740864149462,0.04804977,140.71,140.68,7.15701909]
[1740864149860,0.04804977,140.71,140.68,0.04631909]
[1740864151373,0.04804977,140.71,140.69,7.1104]
[1740864154074,0.04804977,140.71,140.7,7.11]
[1740864155270,54.41168724,140.76,140.72,7.1087]
[1740864156274,0.05292117,140.75,140.73,0.05464322]
[1740864156976,0.05292117,140.75,140.74,7.108]
[1740864158174,29.44049569,140.78,140.75,7.107]
[1740864158480,29.44049569,140.78,140.74,10.54]
[1740864159372,0.05434694,140.77,140.74,10.54]
[1740864160376,0.05434694,140.77,140.76,7.1066]
[1740864160881,0.05434694,140.77,140.75,1.9606]
[1740864163575,0.05434694,140.77,140.75,9.068]
[1740864164485,0.05434694,140.77,140.74,10.54]